bitfinex/quotes_BTCUSD_20251207
["timestamp","ask_amount","ask_price","bid_price","bid_amount"]
[1765117832877,0.02220398,88041.0,88040.0,0.01135847]
[1765117833084,0.02220398,88038.0,88037.0,0.03007886]
[1765117833287,0.02220398,88038.0,88037.0,0.25725606]
[1765117833722,0.02220398,88038.0,88037.0,0.01872]
[1765117833968,0.02220398,88038.0,88025.0,0.0113604]
[1765117833969,0.02220398,88026.0,88025.0,0.0113604]
[1765117834164,0.06426,88038.0,88032.0,0.0113595]
[1765117834346,0.02220398,88031.0,88030.0,0.01135976]
[1765117835007,0.0113586,88039.0,88030.0,0.01135976]
[1765117835200,0.02220398,88031.0,88030.0,0.01135976]
[1765117835410,0.02220398,88037.0,88036.0,0.01135898]
[1765117835524,0.02220398,88037.0,88027.0,0.01136015]
[1765117835525,0.02220398,88032.0,88027.0,0.01136015]
[1765117835732,0.02220398,88032.0,87992.0,0.61914829]
[1765117835733,0.02220398,88019.0,88018.0,0.01136131]
[1765117835943,0.02220398,88019.0,88018.0,0.0114797]
[1765117836564,0.01033015,88035.0,88026.0,0.01136027]
[1765117836565,0.01135911,88035.0,88026.0,0.01136027]
[1765117836761,0.01135911,88035.0,88018.0,0.00011839]
[1765117836762,0.0113604,88025.0,88018.0,0.0114797]
[1765117836970,0.07049398,88019.0,88018.0,0.00011839]
[1765117837396,0.02220398,88022.0,88021.0,0.01136092]
[1765117837799,0.02220398,88020.0,88019.0,0.01136118]
[1765117838239,0.02220398,88019.0,88018.0,0.00011839]
[1765117838663,0.08646398,88019.0,88018.0,0.00011839]
[1765117838861,0.35088473,88019.0,88018.0,0.00011839]
[1765117839060,0.36121972,88019.0,88018.0,0.00011839]
[1765117839632,0.13463606,88019.0,88018.0,0.00011839]
[1765117839894,0.02220398,88019.0,88018.0,0.00011839]
[1765117840094,0.22717658,88038.0,88018.0,0.00011839]
[1765117840095,0.02220398,88029.0,88028.0,0.23856045]
[1765117840296,0.22716381,88043.0,88036.0,0.01135898]
[1765117840436,0.01135834,88041.0,88037.0,0.01135886]
[1765117840634,0.02220398,88042.0,88037.0,0.01135886]
[1765117840635,0.02220398,88042.0,88039.0,0.0113586]
[1765117840881,0.02220398,88036.0,88034.0,0.01135924]
[1765117841019,0.01135976,88030.0,88024.0,0.01136053]
[1765117841234,0.22715555,88046.0,88018.0,0.00011839]
[1765117841235,0.01135924,88034.0,88022.0,0.22721592]
[1765117841465,0.01135847,88040.0,88034.0,0.01135924]
[1765117841667,0.02220398,88037.0,88036.0,0.01135898]
[1765117841870,0.02220398,88037.0,88031.0,0.01135963]
[1765117841871,0.02220398,88047.0,88046.0,0.01135769]
[1765117842068,0.02220398,88051.0,88048.0,0.01135744]
[1765117842272,0.02220398,88044.0,88043.0,0.23851979]
[1765117842724,0.02220398,88038.0,88037.0,0.01135886]
[1765117842927,0.01135757,88047.0,88043.0,0.01135808]
[1765117843130,0.02220398,88044.0,88043.0,0.01135808]
[1765117843384,0.02220398,88042.0,88041.0,0.2385227]
[1765117843616,0.00011811,88047.0,88042.0,0.01135821]
[1765117843617,0.01147568,88047.0,88042.0,0.01135821]
[1765117843822,0.01296166,88047.0,88039.0,0.0113586]
[1765117844031,0.02220398,88040.0,88039.0,0.23852907]
[1765117844271,0.02220398,88033.0,88029.0,0.01135989]
[1765117844558,0.0495,88046.0,88004.0,0.09545]
[1765117844559,0.01136002,88028.0,88021.0,0.01136092]
[1765117844779,0.02220398,88021.0,88020.0,0.01136105]
[1765117844990,0.033564,88028.0,88024.0,0.01136053]
[1765117845210,0.033564,88028.0,88020.0,0.01136105]
[1765117845211,0.00011811,88047.0,88044.0,0.23851709]
[1765117845471,0.00011811,88047.0,88046.0,0.22715398]
[1765117845677,0.00011811,88047.0,88032.0,0.22718842]
[1765117845678,0.0335618,88045.0,88032.0,0.22718842]
[1765117845877,0.02220398,88039.0,88038.0,0.01135873]
[1765117846036,0.02220398,88039.0,88026.0,0.22720305]
[1765117846037,0.01135898,88036.0,88026.0,0.22720305]
[1765117846218,0.02220398,88026.0,88022.0,0.01136079]
[1765117846418,0.02220398,88026.0,88000.0,19.11928329]
[1765117846419,0.22722065,88021.0,88011.0,0.01136221]
[1765117846630,0.22722065,88021.0,88009.0,0.22724948]
[1765117846631,0.01136182,88014.0,88009.0,0.01136247]
[1765117846832,0.02220398,88010.0,88007.0,0.01136273]
[1765117847058,0.02220398,88008.0,88007.0,0.01136273]
[1765117847344,0.48377491,88051.0,87998.0,0.0003879]
[1765117847345,0.01135692,88052.0,88046.0,0.01135769]
[1765117847546,0.01135692,88052.0,88044.0,0.01135795]
[1765117847547,0.02220398,88040.0,88038.0,0.01135873]
[1765117847766,0.01135795,88044.0,88039.0,0.0113586]
[1765117848017,0.02220398,88031.0,88029.0,0.01135989]
[1765117848240,0.02220398,88031.0,88025.0,0.22720603]
[1765117848241,0.01135886,88037.0,88014.0,0.01868]
[1765117848479,0.02220398,88022.0,88021.0,0.01136092]
[1765117849428,0.01284561,88031.0,88021.0,0.01136092]
[1765117849429,0.00099999,88060.0,88054.0,0.01135666]
[1765117849636,0.00148598,88060.0,88054.0,0.01135666]
[1765117849844,0.00148598,88060.0,88057.0,0.01135628]
[1765117850015,0.02220398,88058.0,88057.0,0.01135628]
[1765117850283,0.02220398,88058.0,88051.0,0.01135705]
[1765117850284,0.04713,88076.0,88015.0,0.0302045]
[1765117850487,0.02220398,88069.0,88068.0,0.23845137]
[1765117851338,0.02220398,88068.0,88067.0,0.23845481]
[1765117851546,0.00160415,88076.0,88075.0,0.22707919]
[1765117851547,0.00011817,88076.0,88075.0,0.22707919]
[1765117851756,0.02232215,88076.0,88075.0,0.22707919]
[1765117852446,0.02232215,88076.0,88073.0,0.01135421]
[1765117852692,0.02232215,88076.0,88066.0,0.2271024]
[1765117852693,0.01135447,88071.0,88066.0,0.2271024]
[1765117852908,0.02220398,88069.0,88068.0,0.01135486]
[1765117853339,0.02220106,88070.0,88069.0,0.01135473]
[1765117853535,0.02220106,88069.0,88067.0,0.01135499]
[1765117853761,0.02220106,88075.0,88068.0,0.01135486]
[1765117853982,0.24928025,88075.0,88069.0,0.01135473]
[1765117854164,0.01135421,88073.0,88069.0,0.01135473]
[1765117854401,0.02220106,88068.0,88067.0,0.23845476]
[1765117854577,0.02220106,88069.0,88068.0,0.01135486]
[1765117854730,0.01135357,88078.0,88073.0,0.01135421]
[1765117854939,0.01135357,88078.0,88072.0,0.22708512]
[1765117854940,0.02220106,88072.0,88071.0,0.01135447]
[1765117855176,0.02220106,88072.0,88067.0,0.23845476]
[1765117855177,0.02220106,88061.0,88060.0,0.01135589]
[1765117855352,0.02220106,88061.0,88054.0,0.22713258]
[1765117855353,0.02220106,88056.0,88055.0,0.01135653]
[1765117855700,0.02220106,88056.0,88025.0,0.0302045]
[1765117855701,0.01135757,88047.0,88044.0,0.01135795]
[1765117855901,0.02220106,88045.0,88044.0,0.01135795]
[1765117856109,0.01284355,88047.0,88039.0,0.0113586]
[1765117856110,0.02220106,88040.0,88039.0,0.0113586]
[1765117856710,0.02220398,88044.0,88043.0,0.23851729]
[1765117856923,0.20220106,88046.0,88043.0,0.23851729]
[1765117857487,0.20220106,88046.0,88039.0,0.0113586]
[1765117857488,0.01135847,88040.0,88035.0,0.01135911]
[1765117857691,0.02220398,88037.0,88036.0,0.01135898]
[1765117858467,0.01136002,88028.0,88023.0,0.01136066]
[1765117858697,0.0495,88037.0,88000.0,19.08928329]
[1765117858698,0.38047181,88036.0,88007.0,0.01136273]
[1765117858875,0.02220398,88002.0,88001.0,0.0113635]
[1765117859093,0.02220398,88002.0,88001.0,0.01148189]
[1765117859511,0.30045752,88002.0,88001.0,0.00011839]
[1765117859851,5.30045752,88002.0,88001.0,0.00011839]
[1765117860166,5.62345752,88002.0,88001.0,0.00011839]
[1765117860375,5.63379258,88002.0,88001.0,0.00011839]
[1765117860794,1.33179258,88002.0,88001.0,0.00011839]
[1765117861008,1.3303066,88002.0,88001.0,0.00011839]
[1765117861438,1.33179258,88002.0,88001.0,0.00011839]
[1765117861642,5.69631557,88002.0,88001.0,0.00011839]
[1765117862234,5.61010262,88002.0,88001.0,0.00011839]
[1765117862380,1.55180262,88002.0,88001.0,0.00011839]
[1765117862596,3.10886756,88002.0,88001.0,0.00011839]
[1765117862802,0.56927154,88002.0,88001.0,0.00011839]
[1765117863286,0.0262726,88008.0,88001.0,0.00011839]
[1765117863287,0.01491,88008.0,88005.0,0.2386228]
[1765117863504,0.01491,88008.0,88003.0,0.01136324]
[1765117863505,0.02220398,88008.0,88003.0,0.01136324]
[1765117863705,0.02220398,88014.0,88006.0,0.01136286]
[1765117863907,0.22723141,88016.0,88001.0,0.2387501]
[1765117863908,0.02220398,88009.0,88001.0,0.2387501]
[1765117864124,0.22726302,88004.0,88001.0,0.00011839]
[1765117864326,2.13187154,88002.0,88001.0,0.00011839]
[1765117864530,0.37596756,88002.0,88001.0,0.00011839]
[1765117864701,3.45930398,88001.0,88000.0,19.03940329]
[1765117864916,2.320022,88001.0,88000.0,19.03940329]
[1765117865131,1.997022,88001.0,88000.0,19.03940329]
[1765117865342,0.730822,88001.0,88000.0,19.03940329]
[1765117865471,0.022322,88001.0,88000.0,19.03940329]
[1765117865682,0.00011802,88001.0,88000.0,19.03940329]
[1765117865879,0.00011802,88001.0,88000.0,19.13711329]
[1765117866479,0.00011802,88001.0,88000.0,19.03940329]
[1765117866908,0.022322,88001.0,88000.0,19.03940329]
[1765117867166,0.00011802,88001.0,88000.0,19.03940329]
[1765117867389,5.022322,88001.0,88000.0,19.03940329]
[1765117867579,3.52917802,88001.0,88000.0,19.03940329]
[1765117867794,2.253182,88001.0,88000.0,19.03940329]
[1765117868211,0.565982,88001.0,88000.0,19.03940329]
[1765117868433,0.037082,88001.0,88000.0,19.03940329]
[1765117868643,5.01487802,88001.0,88000.0,19.03940329]
[1765117868898,2.038882,88001.0,88000.0,19.03940329]
[1765117869158,0.286122,88001.0,88000.0,19.03940329]
[1765117869366,0.286122,88001.0,88000.0,19.36438601]
[1765117869367,0.00011802,88001.0,88000.0,19.36438601]
[1765117869996,0.01135834,88041.0,88034.0,0.22718495]
[1765117870208,0.00011863,88041.0,88037.0,0.01135886]
[1765117870413,0.02220398,88036.0,88035.0,0.01135911]
[1765117870618,0.00160461,88041.0,88038.0,0.01135873]
[1765117870619,0.00011863,88041.0,88038.0,0.01135873]
[1765117870819,0.00011863,88041.0,88040.0,0.22716946]
[1765117871252,0.02232261,88041.0,88040.0,0.22716946]
[1765117871468,0.00011863,88041.0,88040.0,0.22716946]
[1765117872519,0.00011863,88041.0,88040.0,0.32683946]
[1765117873339,0.00011863,88041.0,88040.0,0.22716946]
[1765117873760,0.00011863,88041.0,88040.0,0.32683946]
[1765117874978,0.09616,88096.0,88040.0,0.32683946]
[1765117874979,0.02220398,88076.0,88075.0,0.01135395]
[1765117875177,0.02220398,88071.0,88070.0,0.0113546]
[1765117875379,0.02220398,88071.0,88069.0,0.23844714]
[1765117875380,0.02220398,88072.0,88071.0,0.01135447]
[1765117875581,0.02220398,88072.0,88067.0,0.03003499]
[1765117875582,0.02220398,88068.0,88067.0,0.03003499]
[1765117875786,0.02220398,88068.0,88051.0,0.04716]
[1765117875787,0.02220398,88068.0,88052.0,0.2271385]
[1765117875788,0.01135524,88065.0,88052.0,0.2271385]
[1765117875993,0.00148598,88068.0,88030.0,0.00099999]
[1765117875994,0.01135408,88074.0,88065.0,0.01135524]
[1765117876209,0.02220398,88066.0,88065.0,0.01135524]
[1765117876364,0.00148598,88074.0,88071.0,0.01135447]
[1765117876565,0.01147244,88076.0,88074.0,0.22708177]
[1765117876566,0.00011861,88076.0,88074.0,0.22708177]
[1765117876974,0.02220398,88075.0,88074.0,0.22708177]
[1765117877155,0.01135473,88069.0,88059.0,0.22712032]
[1765117877359,0.01135473,88069.0,88000.0,19.03940329]
[1765117877360,0.01135499,88067.0,88060.0,0.01135589]
[1765117877656,0.02220398,88061.0,88060.0,0.01135589]
[1765117877996,0.00148598,88067.0,88066.0,0.2271024]
[1765117878199,0.02220398,88074.0,88073.0,0.01135421]
[1765117878588,0.02220398,88074.0,88064.0,0.01135537]
[1765117878589,0.02220398,88062.0,88056.0,0.0113564]
[1765117878809,0.22709724,88068.0,88060.0,0.01135589]
[1765117878810,0.02220398,88061.0,88060.0,0.01135589]
[1765117878982,0.02220398,88061.0,88055.0,0.01135653]
[1765117878983,0.02220398,88056.0,88053.0,0.01135679]
[1765117879224,0.04968,88067.0,88053.0,0.01135679]
[1765117879225,0.01135524,88065.0,88061.0,0.01135576]
[1765117879424,0.01135524,88065.0,88058.0,0.01135615]
[1765117879425,0.02220398,88059.0,88058.0,0.01135615]
[1765117879748,0.01135486,88068.0,88063.0,0.0113555]
[1765117879962,0.22706533,88081.0,88055.0,0.01135653]
[1765117879963,0.02220398,88057.0,88055.0,0.01135653]
[1765117880159,0.02220398,88051.0,88050.0,0.03003718]
[1765117880807,0.03355884,88068.0,88060.0,0.01135589]
[1765117881015,0.00148598,88074.0,88060.0,0.01135589]
[1765117881016,0.02220398,88063.0,88062.0,0.01135563]
[1765117881485,0.02220398,88067.0,88066.0,0.01135512]
[1765117881719,0.00148598,88074.0,88066.0,0.01135512]
[1765117881720,0.00148598,88074.0,88068.0,0.01135486]
[1765117881935,0.02220398,88066.0,88063.0,0.0113555]
[1765117882094,0.00148598,88074.0,88048.0,0.01135744]
[1765117882095,0.02220398,88056.0,88048.0,0.01135744]
[1765117882296,0.0495,88073.0,88040.0,0.22716763]
[1765117882297,0.23850831,88048.0,88042.0,0.01135821]
[1765117882521,0.0113564,88056.0,88052.0,0.01135692]
[1765117882726,0.0113564,88056.0,88038.0,0.01868]
[1765117882727,0.01135744,88048.0,88043.0,0.01135808]
[1765117882897,0.02220398,88049.0,88035.0,0.22718218]
[1765117882898,0.01135808,88043.0,88035.0,0.22718218]
[1765117883119,0.23855361,88031.0,88019.0,0.04826]
[1765117883469,0.03607,88029.0,88028.0,0.01714986]
[1765117883614,0.77677398,88029.0,88028.0,0.01714986]
[1765117884004,0.82627398,88029.0,88028.0,0.01714986]
[1765117884295,0.36977398,88029.0,88028.0,0.01714986]
[1765117884508,0.61607,88029.0,88028.0,0.01714986]
[1765117884713,0.03607,88040.0,88033.0,0.01135937]
[1765117884918,0.03607,88040.0,88038.0,0.22717462]
[1765117885098,0.03607,88040.0,88030.0,0.01135976]
[1765117885099,0.01135886,88037.0,88031.0,0.01135963]
[1765117885312,0.01135886,88037.0,88030.0,0.01135976]
[1765117885313,0.02220398,88031.0,88030.0,0.01135976]
[1765117885538,0.02220398,88031.0,88028.0,0.01714986]
[1765117885539,0.24940183,88029.0,88028.0,0.01714986]
[1765117885977,0.24940183,88029.0,88028.0,0.00011863]
[1765117886123,0.02220398,88029.0,88028.0,0.00011863]
[1765117886527,0.27666314,88044.0,88033.0,0.01135937]
[1765117886528,0.02220398,88034.0,88033.0,0.01135937]
[1765117886731,0.44790398,88034.0,88033.0,0.01135937]
[1765117886930,0.03607,88040.0,88037.0,0.23853478]
[1765117887157,0.01135911,88035.0,88031.0,0.01135963]
[1765117887332,0.01135937,88033.0,88029.0,0.01135989]
[1765117887530,0.01135963,88031.0,88028.0,0.00011863]
[1765117887732,0.02220398,88029.0,88028.0,0.00011863]
[1765117887943,0.0495,88048.0,88032.0,0.0113595]
[1765117888159,0.02220398,88029.0,88028.0,0.01147865]
[1765117889063,0.02220398,88038.0,88037.0,0.01135886]
[1765117889281,0.02220398,88038.0,88037.0,0.23853487]
[1765117889415,0.01135718,88050.0,88037.0,0.23853487]
[1765117889416,0.02220398,88055.0,88054.0,0.01135666]
[1765117889611,0.02220398,88051.0,88050.0,0.23849972]
[1765117889841,0.02220398,88051.0,88046.0,0.01135769]
[1765117889842,0.01135757,88047.0,88043.0,0.01135808]
[1765117890183,0.02220398,88049.0,88048.0,0.01135744]
[1765117890813,0.00148598,88051.0,88048.0,0.01135744]
[1765117890814,0.02220398,88050.0,88049.0,0.22714624]
[1765117891356,0.22711936,88060.0,88048.0,0.01135744]
[1765117891357,0.02220398,88049.0,88048.0,0.01135744]
[1765117891568,0.02220398,88051.0,88050.0,0.2271435]
[1765117891750,0.02220398,88049.0,88048.0,0.01135744]
[1765117891994,0.01135537,88064.0,88063.0,0.0113555]
[1765117891995,0.02220398,88064.0,88063.0,0.0113555]
[1765117892204,0.01135512,88066.0,88061.0,0.01135576]
[1765117892205,0.02220398,88063.0,88062.0,0.01135563]
[1765117892416,0.02220398,88063.0,88061.0,0.01135576]
[1765117892417,0.01135486,88068.0,88061.0,0.23847105]
[1765117892645,0.02220398,88073.0,88072.0,0.23843973]
[1765117893068,0.02220398,88069.0,88068.0,0.01135486]
[1765117893284,0.02220398,88069.0,88067.0,0.01135499]
[1765117893285,0.02220398,88065.0,88064.0,0.01135537]
[1765117893495,0.00011859,88073.0,88056.0,0.22712722]
[1765117893700,0.23844257,88072.0,88064.0,0.01135537]
[1765117893911,0.00011859,88073.0,88070.0,0.0113546]
[1765117894125,0.00011859,88073.0,88066.0,0.01135512]
[1765117894344,0.01135447,88071.0,88066.0,0.01135512]
[1765117894555,0.02220398,88071.0,88070.0,0.23844668]
[1765117894780,0.00011859,88073.0,88056.0,0.22712611]
[1765117894781,0.01135524,88065.0,88060.0,0.01135589]
[1765117894996,0.02220398,88063.0,88062.0,0.01135563]
[1765117895224,0.02220398,88060.0,88059.0,0.01135602]
[1765117895864,0.02220398,88060.0,88056.0,0.0113564]
[1765117895865,0.02220398,88057.0,88056.0,0.0113564]
[1765117896078,0.02220398,88058.0,88057.0,0.23848189]
[1765117896288,0.02220398,88058.0,88050.0,0.01135718]
[1765117896289,0.02220398,88052.0,88050.0,0.01135718]
[1765117896557,0.00148598,88057.0,88056.0,0.22712819]
[1765117896757,0.02961556,88089.0,88056.0,0.22712819]
[1765117896758,0.02220398,88077.0,88071.0,0.2270895]
[1765117896950,0.02220398,88077.0,88069.0,0.01135473]
[1765117896951,0.02220398,88070.0,88069.0,0.01135473]
[1765117897161,0.00160457,88073.0,88069.0,0.01135473]
[1765117897162,0.00160457,88073.0,88070.0,0.23844668]
[1765117897367,0.00011859,88073.0,88070.0,0.23844668]
[1765117897492,0.00011859,88073.0,88070.0,0.33811668]
[1765117897706,0.00011859,88073.0,88072.0,0.29150692]
[1765117898112,0.00011859,88073.0,88072.0,0.39117692]
[1765117898684,0.00011859,88073.0,88072.0,0.29150692]
[1765117898886,0.00011859,88073.0,88072.0,0.39117692]
[1765117899464,0.00011859,88073.0,88072.0,0.22708692]
[1765117899664,0.00011859,88073.0,88070.0,0.0113546]
[1765117899838,0.00011859,88073.0,88072.0,0.24576692]
[1765117900031,0.02232257,88073.0,88072.0,0.24576692]
[1765117900230,0.00011859,88073.0,88072.0,0.24576692]
[1765117901084,0.00011859,88073.0,88070.0,0.0300346]
[1765117901085,0.00160457,88073.0,88070.0,0.0300346]
[1765117901296,0.00160457,88073.0,88071.0,0.2270895]
[1765117901672,0.00011859,88073.0,88071.0,0.2270895]
[1765117905307,0.00011859,88073.0,88065.0,0.32216404]
[1765117905308,0.0495,88072.0,88058.0,0.22712116]
[1765117905521,0.22714904,88048.0,88040.0,0.01135847]
[1765117905681,0.0350474,88048.0,88042.0,0.01135821]
[1765117905883,0.02220398,88046.0,88043.0,0.01135808]
[1765117906133,0.03016,88043.0,88038.0,0.01135873]
[1765117906336,0.01135769,88046.0,88043.0,0.01135808]
[1765117906337,0.02220398,88046.0,88043.0,0.01135808]
[1765117906508,0.02220398,88046.0,88044.0,0.22715914]
[1765117907071,0.00148598,88048.0,88047.0,0.2271514]
[1765117907275,0.02220398,88055.0,88054.0,0.01135666]
[1765117907480,0.02220398,88057.0,88054.0,0.01135666]
[1765117907707,0.01135589,88060.0,88053.0,0.01135679]
[1765117907708,0.24932557,88059.0,88053.0,0.01135679]
[1765117907911,0.01135563,88062.0,88056.0,0.23848325]
[1765117908109,0.26066851,88064.0,88059.0,0.23847553]
[1765117908110,0.02220398,88064.0,88059.0,0.23847553]
[1765117908312,0.22710137,88067.0,88060.0,0.01135589]
[1765117908313,0.01135499,88067.0,88060.0,0.01135589]
[1765117908553,0.02220398,88065.0,88064.0,0.01135537]
[1765117908773,0.02220398,88063.0,88062.0,0.01135563]
[1765117909196,0.02220398,88063.0,88061.0,0.23847]
[1765117909197,0.02220398,88076.0,88075.0,0.01135395]
[1765117909372,0.02220398,88076.0,88069.0,0.01135473]
[1765117909373,0.02220398,88074.0,88069.0,0.01135473]
[1765117909577,0.02220398,88074.0,88030.0,0.01903121]
[1765117909578,0.02220398,88063.0,88061.0,0.01135576]
[1765117909780,0.00011861,88076.0,88073.0,0.01135421]
[1765117909957,0.02220398,88073.0,88070.0,0.0113546]
[1765117910138,0.02220398,88075.0,88074.0,0.22708139]
[1765117910550,0.02220398,88075.0,88070.0,0.0113546]
[1765117910551,0.03355793,88075.0,88070.0,0.0113546]
[1765117910754,0.02220398,88073.0,88065.0,0.22710285]
[1765117910967,0.01135563,88062.0,88057.0,0.01135628]
[1765117911171,0.02220398,88059.0,88058.0,0.01135615]
[1765117911369,0.01135524,88065.0,88057.0,0.01135628]
[1765117911370,0.02220398,88058.0,88057.0,0.01135628]
[1765117911572,0.02220398,88062.0,88061.0,0.22711529]
[1765117912003,0.02220398,88062.0,88059.0,0.01135602]
[1765117912457,0.02220398,88062.0,88053.0,0.24581576]
[1765117912458,0.0113564,88056.0,88051.0,0.23849656]
[1765117912658,0.00049,88060.0,88052.0,0.01864]
[1765117912659,0.02220398,88054.0,88052.0,0.01864]
[1765117913088,0.00148598,88060.0,88052.0,0.01864]
[1765117913089,0.00148598,88060.0,88057.0,0.01135628]
[1765117913301,0.02220398,88054.0,88047.0,0.2271491]
[1765117913503,0.02220398,88054.0,88036.0,0.01135898]
[1765117913504,0.01135769,88046.0,88036.0,0.01135898]
[1765117913651,0.01135847,88040.0,88035.0,0.01864]
[1765117913858,0.02220398,88037.0,88036.0,0.01135898]
[1765117914050,0.02220398,88037.0,88035.0,0.25718051]
[1765117914287,0.0113564,88056.0,88045.0,0.22715656]
[1765117914502,0.0113564,88056.0,88043.0,0.01135808]
[1765117914503,0.2271385,88052.0,88047.0,0.01135757]
[1765117914718,0.02220398,88050.0,88046.0,0.01135769]
[1765117914922,0.02220398,88050.0,88049.0,0.01135731]
[1765117915120,0.0495,88047.0,88038.0,0.01135873]
[1765117915330,0.01135744,88048.0,88042.0,0.01135821]
[1765117915531,0.01135744,88048.0,88039.0,0.0113586]
[1765117915532,0.02220398,88040.0,88039.0,0.0113586]
[1765117916048,0.23851116,88047.0,88043.0,0.01135808]
[1765117916248,0.01135757,88047.0,88043.0,0.01135808]
[1765117916459,0.02220398,88044.0,88043.0,0.01135808]
[1765117916667,0.02220398,88045.0,88041.0,0.01135834]
[1765117916978,0.01135757,88047.0,88042.0,0.01135821]
[1765117916979,0.02220398,88043.0,88042.0,0.01135821]
[1765117917281,0.02220398,88043.0,88041.0,0.01135834]
[1765117917611,0.00148598,88048.0,88041.0,0.01135834]
[1765117917612,0.00148598,88048.0,88047.0,0.2271514]
[1765117918634,0.01135757,88047.0,88036.0,0.01135898]
[1765117918833,0.02220398,88042.0,88037.0,0.22717553]
[1765117919310,0.03356219,88042.0,88037.0,0.01135886]
[1765117919528,0.03356219,88042.0,88031.0,0.2271918]
[1765117919529,0.01135963,88031.0,88026.0,0.01136027]
[1765117919703,0.05246398,88027.0,88026.0,0.00011863]
[1765117919906,5.18841001,88027.0,88026.0,0.00011863]
[1765117920102,5.53410399,88027.0,88026.0,0.00011863]
[1765117920483,0.07976,88027.0,88026.0,0.00011863]
[1765117920688,0.32965699,88027.0,88026.0,0.00011863]
[1765117921205,5.18890001,88027.0,88026.0,0.00011863]
[1765117921409,3.90575699,88027.0,88026.0,0.00011863]
[1765117921609,0.10147398,88027.0,88026.0,0.00011863]
[1765117921794,0.05246398,88027.0,88026.0,0.00011863]
[1765117921993,0.03026,88041.0,88037.0,0.23853606]
[1765117922309,0.03026,88041.0,88032.0,0.0113595]
[1765117922310,0.02220398,88038.0,88035.0,0.01135911]
[1765117922514,0.03026,88049.0,88045.0,0.01135782]
[1765117922812,0.03026,88049.0,88038.0,0.01135873]
[1765117922813,0.01135821,88042.0,88038.0,0.01135873]
[1765117922973,0.03026,88049.0,88046.0,0.22715319]
[1765117923173,0.02368996,88048.0,88045.0,0.01135782]
[1765117923583,0.02368996,88048.0,88042.0,0.01135821]
[1765117923584,0.01135782,88045.0,88042.0,0.01135821]
[1765117923780,0.01135782,88045.0,88018.0,0.09519]
[1765117923781,0.02220398,88040.0,88036.0,0.23853737]
[1765117923986,0.02220398,88040.0,88024.0,0.22720869]
[1765117923987,0.02220398,88033.0,88031.0,0.01135963]
[1765117924204,0.02220398,88033.0,88029.0,0.01864]
[1765117924205,0.0113595,88032.0,88029.0,0.01864]
[1765117924405,0.02220398,88030.0,88029.0,0.02999989]
[1765117924608,0.02220398,88030.0,88029.0,0.01864]
[1765117925016,0.02220398,88030.0,88026.0,0.22732258]
[1765117925017,0.23855774,88029.0,88026.0,0.00011863]
[1765117925229,5.13134399,88027.0,88026.0,0.00011863]
[1765117925662,5.18035399,88027.0,88026.0,0.00011863]
[1765117926260,1.61250699,88027.0,88026.0,0.00011863]
[1765117926467,1.15740699,88027.0,88026.0,0.00011863]
[1765117926672,1.52398071,88027.0,88026.0,0.00011863]
[1765117927082,1.5865037,88027.0,88026.0,0.00011863]
[1765117927289,5.6094507,88027.0,88026.0,0.00011863]
[1765117929252,0.68442998,88027.0,88026.0,0.00011863]
[1765117929471,0.38240301,88027.0,88026.0,0.00011863]
[1765117929675,0.79012998,88027.0,88026.0,0.00011863]
[1765117930076,0.78963998,88027.0,88026.0,0.00011863]
[1765117930281,0.22727014,88001.0,87998.0,0.0003879]
[1765117930500,0.00095,88001.0,87998.0,0.0003879]
[1765117930741,0.34518412,88001.0,87998.0,0.0003879]
[1765117930878,0.27442014,88001.0,87998.0,0.0003879]
[1765117931256,5.32565951,88001.0,87998.0,0.0003879]
[1765117931546,5.7111825,88001.0,87998.0,0.0003879]
[1765117933424,5.61215411,88001.0,87998.0,0.0003879]
[1765117934048,5.61364009,88001.0,87998.0,0.0003879]
[1765117934248,5.54963112,88001.0,87998.0,0.0003879]
[1765117934714,1.00898412,88001.0,87998.0,0.0003879]
[1765117934916,1.07299309,88001.0,87998.0,0.0003879]
[1765117935073,1.50569815,88001.0,87998.0,0.0003879]
[1765117935277,5.72334515,88001.0,87998.0,0.0003879]
[1765117936209,5.61364009,88001.0,87998.0,0.0003879]
[1765117936546,5.5511171,88001.0,87998.0,0.0003879]
[1765117936757,5.5511171,88001.0,88000.0,18.2561396]
[1765117936955,5.64325565,88001.0,88000.0,18.2561396]
[1765117937170,5.59143611,88001.0,88000.0,17.86225631]
[1765117937578,5.61364009,88001.0,88000.0,17.48820247]
[1765117937985,5.61364009,88001.0,88000.0,17.23404307]
[1765117938186,5.61364009,88001.0,88000.0,16.95285155]
[1765117938388,5.61104009,88001.0,88000.0,16.95285155]
[1765117938831,5.61104009,88001.0,88000.0,16.95072155]
[1765117939039,5.30668009,88001.0,88000.0,16.95072155]
[1765117939500,5.73938515,88001.0,88000.0,16.95072155]
[1765117940506,5.73938515,88001.0,88000.0,16.23401393]
[1765117940689,5.73938515,88001.0,88000.0,15.92471451]
[1765117940884,5.73938515,88001.0,88000.0,15.7219789]
[1765117941041,5.73938515,88001.0,88000.0,15.55911896]
[1765117941238,5.73938515,88001.0,88000.0,15.39353443]
[1765117941737,0.72862911,88001.0,88000.0,4.13102334]
[1765117941961,5.75083309,88001.0,88000.0,3.98264493]
[1765117942166,5.78066425,88001.0,88000.0,3.66705649]
[1765117942368,5.75083309,88001.0,88000.0,3.58401644]
[1765117942721,5.75083309,88001.0,88000.0,3.5157423]
[1765117943041,5.6883101,88001.0,88000.0,3.5157423]
[1765117943251,5.3653101,88001.0,88000.0,3.5157423]
[1765117943667,5.34310612,88001.0,88000.0,3.5157423]
[1765117943885,5.3653101,88001.0,88000.0,3.5157423]
[1765117944771,5.75083309,88001.0,88000.0,3.5157423]
[1765117945384,0.75083309,88001.0,88000.0,3.5157423]
[1765117945601,5.72862911,88001.0,88000.0,2.99730047]
[1765117946029,5.75083309,88001.0,88000.0,2.99730047]
[1765117946810,5.75083309,88001.0,88000.0,2.47986867]
[1765117947025,6.02344865,88001.0,88000.0,2.20793447]
[1765117947265,5.99383309,88001.0,88000.0,1.78137272]
[1765117947480,5.94528009,88001.0,88000.0,1.48436878]
[1765117947712,5.94528009,88001.0,88000.0,0.3856509]
[1765117947713,4.93338009,88001.0,88000.0,0.3856509]
[1765117947959,4.93338009,88001.0,88000.0,0.35152516]
[1765117948185,4.97286751,88001.0,88000.0,1e-08]
[1765117948446,0.06252299,88000.0,87998.0,1e-08]
[1765117948660,4.90977611,88001.0,87939.0,0.01137151]
[1765117948661,1.73818498,87946.0,87939.0,0.01137151]
[1765117948893,1.73818498,87946.0,87945.0,0.03846882]
[1765117948894,1.73867498,87946.0,87945.0,0.03846882]
[1765117949117,1.78827498,87946.0,87945.0,0.03846882]
[1765117949612,1.78827498,87946.0,87920.0,0.01137397]
[1765117949613,0.323,87936.0,87920.0,0.01137397]
[1765117949847,1.83671218,87935.0,87925.0,0.01137332]
[1765117950157,1.83671218,87935.0,87896.0,0.01864]
[1765117950158,0.31631218,87922.0,87919.0,0.227482]
[1765117950359,0.031,87923.0,87919.0,0.2388561]
[1765117950360,0.33851616,87920.0,87919.0,0.2388561]
[1765117950485,0.31631218,87922.0,87919.0,0.2388561]
[1765117950703,0.31631218,87919.0,87917.0,0.01137436]